[Event "Titled Tuesday Blitz April 05 Early 2022"]
[White "De Arruda, Leandro Formes"]
[Black "Pajeken, Jakob Leon"]
[WhiteFideId "22722009"]
[BlackFideId "12942839"]
[WhiteElo "1852"]
[BlackElo "2351"]
[Result "1/2-1/2"]
[Round "01"]
[TimeControl "180+1"]
[Date "2022.04.05"]
[WhiteClock "0:00:04"]
[BlackClock "0:00:04"]

1. d4 {[%clk 0:03:00]}  d5 {[%clk 0:02:54]} 2. Nf3 {[%clk 0:03:01]}  Nf6 {[%clk 0:02:53]} 3. e3 {[%clk 0:03:02]}  c5 {[%clk 0:02:52]} 4. c3 {[%clk 0:03:01]}  Nc6 {[%clk 0:02:51]} 5. Nbd2 {[%clk 0:03:01]}  Bg4 {[%clk 0:02:46]} 6. Be2 {[%clk 0:03:02]}  e6 {[%clk 0:02:45]} 7. Ne5 {[%clk 0:03:02]}  Bxe2 {[%clk 0:02:44]} 8. Qxe2 {[%clk 0:03:03]}  Rc8 {[%clk 0:02:41]} 9. O-O {[%clk 0:03:02]}  Bd6 {[%clk 0:02:41]} 10. f4 {[%clk 0:03:02]}  Ne7 {[%clk 0:02:39]} 11. Rf3 {[%clk 0:03:01]}  h5 {[%clk 0:02:37]} 12. Rg3 {[%clk 0:03:00]}  g6 {[%clk 0:02:38]} 13. b3 {[%clk 0:02:57]}  Nf5 {[%clk 0:02:37]} 14. Bb2 {[%clk 0:02:55]}  Nxg3 {[%clk 0:02:37]} 15. hxg3 {[%clk 0:02:55]}  a6 {[%clk 0:02:37]} 16. Rf1 {[%clk 0:02:54]}  Qa5 {[%clk 0:02:31]} 17. a4 {[%clk 0:02:51]}  cxd4 {[%clk 0:02:28]} 18. exd4 {[%clk 0:02:52]}  Qb6 {[%clk 0:02:25]} 19. Kh2 {[%clk 0:02:49]}  O-O {[%clk 0:02:13]} 20. Qd3 {[%clk 0:02:39]}  Bxe5 {[%clk 0:02:09]} 21. fxe5 {[%clk 0:02:39]}  Ng4+ {[%clk 0:02:09]} 22. Kh1 {[%clk 0:02:32]}  Qd8 {[%clk 0:02:04]} 23. Ba3 {[%clk 0:02:27]}  Re8 {[%clk 0:02:00]} 24. Nf3 {[%clk 0:02:20]}  Rc6 {[%clk 0:01:54]} 25. Nh4 {[%clk 0:02:19]}  Qg5 {[%clk 0:01:52]} 26. Bd6 {[%clk 0:02:01]}  Rec8 {[%clk 0:01:49]} 27. Qf3 {[%clk 0:02:00]}  Nh6 {[%clk 0:01:49]} 28. Bb4 {[%clk 0:01:46]}  b6 {[%clk 0:01:48]} 29. Qf2 {[%clk 0:01:27]}  a5 {[%clk 0:01:42]} 30. Nf3 {[%clk 0:01:27]}  Qd8 {[%clk 0:01:38]} 31. Bd6 {[%clk 0:01:22]}  Rxc3 {[%clk 0:01:38]} 32. Nh2 {[%clk 0:01:09]}  Qg5 {[%clk 0:01:33]} 33. Nf3 {[%clk 0:00:55]}  Qf5 {[%clk 0:01:33]} 34. Qe2 {[%clk 0:00:49]}  Ng4 {[%clk 0:01:28]} 35. Nh2 {[%clk 0:00:45]}  Qd3 {[%clk 0:01:22]} 36. Qe1 {[%clk 0:00:37]}  Qe3 {[%clk 0:01:10]} 37. Nxg4 {[%clk 0:00:26]}  Qxe1 {[%clk 0:01:05]} 38. Nf6+ {[%clk 0:00:25]}  Kg7 {[%clk 0:01:02]} 39. Rxe1 {[%clk 0:00:23]}  Rxb3 {[%clk 0:01:00]} 40. Kh2 {[%clk 0:00:12]}  Rcc3 {[%clk 0:00:56]} 41. Rf1 {[%clk 0:00:08]}  Rxg3 {[%clk 0:00:46]} 42. Ne8+ {[%clk 0:00:07]}  Kg8 {[%clk 0:00:46]} 43. Nf6+ {[%clk 0:00:07]}  Kg7 {[%clk 0:00:45]} 44. Ne8+ {[%clk 0:00:07]}  Kg8 {[%clk 0:00:41]} 45. Nf6+ {[%clk 0:00:06]}  Kh8 {[%clk 0:00:41]} 46. Ne8 {[%clk 0:00:05]}  h4 {[%clk 0:00:29]} 47. Rxf7 {[%clk 0:00:04]}  Rb2 {[%clk 0:00:28]} 48. Be7 {[%clk 0:00:01]}  Rbxg2+ {[%clk 0:00:29]} 49. Kh1 {[%clk 0:00:01]}  Rc2 {[%clk 0:00:11]} 50. Bf6+ {[%clk 0:00:02]}  Kg8 {[%clk 0:00:11]} 51. Rg7+ {[%clk 0:00:02]}  Kf8 {[%clk 0:00:11]} 52. Re7 {[%clk 0:00:02]}  Rc1+ {[%clk 0:00:04]} 53. Kh2 {[%clk 0:00:02]}  Rc2+ {[%clk 0:00:05]} 54. Kh1 {[%clk 0:00:03]}  Rc1+ {[%clk 0:00:03]} 55. Kh2 {[%clk 0:00:03]}  Rc2+ {[%clk 0:00:04]} 56. Kh1 {[%clk 0:00:04]} 1/2-1/2


[Site "https://www.chess.com"]

[Event "Titled Tuesday Blitz April 05 Early 2022"]
[White "Delorme, Alban"]
[Black "Skliarov, Viktor"]
[WhiteFideId "623636"]
[BlackFideId "14106736"]
[WhiteElo "2197"]
[BlackElo "2229"]
[Result "0-1"]
[Round "01"]
[TimeControl "180+1"]
[Date "2022.04.05"]
[WhiteClock "0:00:01"]
[BlackClock "0:00:06"]

1. e4 {[%clk 0:03:00]}  c5 {[%clk 0:02:57]} 2. Nf3 {[%clk 0:03:01]}  Nc6 {[%clk 0:02:55]} 3. d4 {[%clk 0:03:01]}  cxd4 {[%clk 0:02:53]} 4. Nxd4 {[%clk 0:03:02]}  Nf6 {[%clk 0:02:53]} 5. Nc3 {[%clk 0:03:03]}  e5 {[%clk 0:02:53]} 6. Ndb5 {[%clk 0:03:03]}  d6 {[%clk 0:02:52]} 7. Nd5 {[%clk 0:03:04]}  Nxd5 {[%clk 0:02:52]} 8. exd5 {[%clk 0:03:05]}  Nb8 {[%clk 0:02:53]} 9. c4 {[%clk 0:03:05]}  Be7 {[%clk 0:02:51]} 10. Be2 {[%clk 0:03:04]}  O-O {[%clk 0:02:51]} 11. O-O {[%clk 0:03:04]}  a6 {[%clk 0:02:52]} 12. Na3 {[%clk 0:03:03]}  f5 {[%clk 0:02:46]} 13. Nc2 {[%clk 0:03:02]}  Nd7 {[%clk 0:02:46]} 14. Be3 {[%clk 0:03:00]}  Bg5 {[%clk 0:02:42]} 15. a3 {[%clk 0:02:52]}  a5 {[%clk 0:02:35]} 16. b4 {[%clk 0:02:50]}  axb4 {[%clk 0:02:18]} 17. axb4 {[%clk 0:02:51]}  Rxa1 {[%clk 0:02:18]} 18. Qxa1 {[%clk 0:02:49]}  Bxe3 {[%clk 0:02:18]} 19. Nxe3 {[%clk 0:02:46]}  Qb6 {[%clk 0:02:17]} 20. Qc3 {[%clk 0:02:39]}  f4 {[%clk 0:02:06]} 21. Nd1 {[%clk 0:02:28]}  e4 {[%clk 0:02:05]} 22. Nb2 {[%clk 0:02:21]}  f3 {[%clk 0:01:29]} 23. gxf3 {[%clk 0:02:17]}  exf3 {[%clk 0:01:30]} 24. Bxf3 {[%clk 0:02:15]}  Ne5 {[%clk 0:01:30]} 25. Bg2 {[%clk 0:01:42]}  Bg4 {[%clk 0:01:21]} 26. c5 {[%clk 0:01:32]}  Qd8 {[%clk 0:01:19]} 27. f4 {[%clk 0:01:19]}  Ng6 {[%clk 0:01:13]} 28. Qg3 {[%clk 0:01:17]}  Be2 {[%clk 0:01:03]} 29. Rf2 {[%clk 0:01:14]}  Bb5 {[%clk 0:01:03]} 30. Be4 {[%clk 0:01:04]}  Qf6 {[%clk 0:00:45]} 31. Bxg6 {[%clk 0:01:00]}  hxg6 {[%clk 0:00:45]} 32. Qg5 {[%clk 0:00:30]}  Qd4 {[%clk 0:00:42]} 33. cxd6 {[%clk 0:00:30]}  Qxb4 {[%clk 0:00:33]} 34. Qe5 {[%clk 0:00:26]}  Re8 {[%clk 0:00:27]} 35. Qg5 {[%clk 0:00:17]}  Re1+ {[%clk 0:00:26]} 36. Kg2 {[%clk 0:00:17]}  Qxd6 {[%clk 0:00:20]} 37. h4 {[%clk 0:00:07]}  Qf6 {[%clk 0:00:13]} 38. Qxf6 {[%clk 0:00:07]}  gxf6 {[%clk 0:00:14]} 39. Rd2 {[%clk 0:00:04]}  Re4 {[%clk 0:00:12]} 40. Kf3 {[%clk 0:00:04]}  Re7 {[%clk 0:00:09]} 41. Nd1 {[%clk 0:00:03]}  Kf7 {[%clk 0:00:09]} 42. Nc3 {[%clk 0:00:04]}  Bd7 {[%clk 0:00:08]} 43. d6 {[%clk 0:00:04]}  Re8 {[%clk 0:00:08]} 44. Nd5 {[%clk 0:00:04]}  b5 {[%clk 0:00:08]} 45. Nc7 {[%clk 0:00:04]}  Rc8 {[%clk 0:00:08]} 46. Rb2 {[%clk 0:00:04]}  f5 {[%clk 0:00:07]} 47. Ke3 {[%clk 0:00:04]}  Kf6 {[%clk 0:00:07]} 48. Kd4 {[%clk 0:00:05]}  Rh8 {[%clk 0:00:07]} 49. Nxb5 {[%clk 0:00:03]}  Rxh4 {[%clk 0:00:07]} 50. Kc5 {[%clk 0:00:01]}  Rxf4 {[%clk 0:00:07]} 51. Nc7 {[%clk 0:00:01]}  Re4 {[%clk 0:00:08]} 52. Nd5+ {[%clk 0:00:01]}  Kf7 {[%clk 0:00:07]} 53. Rb8 {[%clk 0:00:02]}  Be6 {[%clk 0:00:06]} 54. Nb6 {[%clk 0:00:03]}  Re1 {[%clk 0:00:05]} 55. Rb7+ {[%clk 0:00:03]}  Kf6 {[%clk 0:00:06]} 56. d7 {[%clk 0:00:04]}  Rc1+ {[%clk 0:00:06]} 57. Kd6 {[%clk 0:00:05]}  Rd1+ {[%clk 0:00:06]} 58. Kc7 {[%clk 0:00:05]}  Bxd7 {[%clk 0:00:06]} 59. Nxd7+ {[%clk 0:00:04]}  Kg5 {[%clk 0:00:07]} 60. Rb6 {[%clk 0:00:04]}  Kh5 {[%clk 0:00:07]} 61. Nf8 {[%clk 0:00:04]}  g5 {[%clk 0:00:07]} 62. Ne6 {[%clk 0:00:04]}  g4 {[%clk 0:00:07]} 63. Rb5 {[%clk 0:00:04]}  Kg6 {[%clk 0:00:06]} 64. Kc6 {[%clk 0:00:01]}  g3 {[%clk 0:00:06]} 65. Nc5 {[%clk 0:00:01]}  Kg5 {[%clk 0:00:06]} 66. Rb3 {[%clk 0:00:01]}  f4 {[%clk 0:00:06]} 67. Ne4+ {[%clk 0:00:01]}  Kg4 {[%clk 0:00:06]} 0-1


[Site "https://www.chess.com"]

[Event "Titled Tuesday Blitz April 05 Early 2022"]
[White "Derraugh, Geordie"]
[Black "Mikhailovsky, Vladimir"]
[WhiteFideId "2603950"]
[BlackFideId "34105414"]
[WhiteElo "2116"]
[BlackElo "2349"]
[Result "0-1"]
[Round "01"]
[TimeControl "180+1"]
[Date "2022.04.05"]
[WhiteClock "0:00:16"]
[BlackClock "0:00:40"]

1. e4 {[%clk 0:03:00]}  e5 {[%clk 0:03:00]} 2. Nf3 {[%clk 0:03:00]}  Nc6 {[%clk 0:03:00]} 3. d4 {[%clk 0:03:00]}  exd4 {[%clk 0:03:00]} 4. Bc4 {[%clk 0:03:00]}  Nf6 {[%clk 0:02:59]} 5. e5 {[%clk 0:03:00]}  d5 {[%clk 0:02:59]} 6. Bb5 {[%clk 0:03:00]}  Ne4 {[%clk 0:02:59]} 7. Nxd4 {[%clk 0:03:01]}  Bd7 {[%clk 0:03:00]} 8. Bxc6 {[%clk 0:03:01]}  bxc6 {[%clk 0:02:58]} 9. O-O {[%clk 0:03:01]}  Bc5 {[%clk 0:02:57]} 10. f3 {[%clk 0:02:56]}  Ng5 {[%clk 0:02:57]} 11. f4 {[%clk 0:02:56]}  Ne4 {[%clk 0:02:54]} 12. Be3 {[%clk 0:02:56]}  O-O {[%clk 0:02:53]} 13. Nd2 {[%clk 0:02:54]}  Nxd2 {[%clk 0:02:35]} 14. Qxd2 {[%clk 0:02:55]}  Qe7 {[%clk 0:02:34]} 15. Rae1 {[%clk 0:02:49]}  Bb6 {[%clk 0:02:33]} 16. Nb3 {[%clk 0:02:43]}  Bf5 {[%clk 0:02:28]} 17. c3 {[%clk 0:02:39]}  a5 {[%clk 0:02:21]} 18. Qf2 {[%clk 0:02:39]}  Bd3 {[%clk 0:02:14]} 19. Bxb6 {[%clk 0:02:33]}  cxb6 {[%clk 0:02:15]} 20. Qxb6 {[%clk 0:02:33]}  Bxf1 {[%clk 0:02:15]} 21. Rxf1 {[%clk 0:02:34]}  a4 {[%clk 0:01:49]} 22. Nd4 {[%clk 0:02:32]}  Rfc8 {[%clk 0:01:49]} 23. Nf5 {[%clk 0:02:07]}  Qa7 {[%clk 0:01:46]} 24. Qf2 {[%clk 0:01:51]}  Rcb8 {[%clk 0:01:45]} 25. Rb1 {[%clk 0:01:47]}  Qxf2+ {[%clk 0:01:40]} 26. Kxf2 {[%clk 0:01:48]}  Rb6 {[%clk 0:01:37]} 27. b4 {[%clk 0:01:15]}  axb3 {[%clk 0:01:38]} 28. axb3 {[%clk 0:01:16]}  Ra3 {[%clk 0:01:35]} 29. Ke3 {[%clk 0:01:05]}  g6 {[%clk 0:01:25]} 30. Nd4 {[%clk 0:00:58]}  c5 {[%clk 0:01:21]} 31. Ne2 {[%clk 0:00:53]}  Rbxb3 {[%clk 0:01:19]} 32. Rxb3 {[%clk 0:00:54]}  Rxb3 {[%clk 0:01:20]} 33. Kd3 {[%clk 0:00:54]}  Rb2 {[%clk 0:01:18]} 34. h3 {[%clk 0:00:52]}  h5 {[%clk 0:01:16]} 35. g4 {[%clk 0:00:51]}  h4 {[%clk 0:01:17]} 36. Ke3 {[%clk 0:00:48]}  Kf8 {[%clk 0:01:12]} 37. Kd3 {[%clk 0:00:42]}  Ke7 {[%clk 0:01:12]} 38. f5 {[%clk 0:00:43]}  gxf5 {[%clk 0:01:11]} 39. gxf5 {[%clk 0:00:44]}  f6 {[%clk 0:01:10]} 40. e6 {[%clk 0:00:25]}  Kd6 {[%clk 0:01:01]} 41. Ke3 {[%clk 0:00:22]}  Ke5 {[%clk 0:00:53]} 42. e7 {[%clk 0:00:18]}  Rb8 {[%clk 0:00:52]} 43. Nf4 {[%clk 0:00:19]}  d4+ {[%clk 0:00:52]} 44. cxd4+ {[%clk 0:00:18]}  cxd4+ {[%clk 0:00:53]} 45. Kf3 {[%clk 0:00:19]}  Kxf5 {[%clk 0:00:45]} 46. Nd5 {[%clk 0:00:17]}  Re8 {[%clk 0:00:41]} 47. Ke2 {[%clk 0:00:16]}  Ke5 {[%clk 0:00:40]} 0-1


[Site "https://www.chess.com"]

[Event "Titled Tuesday Blitz April 05 Early 2022"]
[White "Domingo Nunez, Alejandro"]
[Black "Tiarks, Jann-Christian"]
[WhiteFideId "22245561"]
[BlackFideId "12951595"]
[WhiteElo "2215"]
[BlackElo "2176"]
[Result "1-0"]
[Round "01"]
[TimeControl "180+1"]
[Date "2022.04.05"]
[WhiteClock "0:01:32"]
[BlackClock "0:01:23"]

1. Nf3 {[%clk 0:03:00]}  c5 {[%clk 0:02:46]} 2. g3 {[%clk 0:02:59]}  d5 {[%clk 0:02:46]} 3. Bg2 {[%clk 0:02:59]}  Nc6 {[%clk 0:02:46]} 4. O-O {[%clk 0:03:00]}  e5 {[%clk 0:02:46]} 5. d3 {[%clk 0:03:00]}  Nf6 {[%clk 0:02:46]} 6. Nbd2 {[%clk 0:02:59]}  Be7 {[%clk 0:02:43]} 7. e4 {[%clk 0:02:59]}  O-O {[%clk 0:02:43]} 8. Re1 {[%clk 0:02:59]}  dxe4 {[%clk 0:02:38]} 9. dxe4 {[%clk 0:02:59]}  b6 {[%clk 0:02:35]} 10. c3 {[%clk 0:02:59]}  Qc7 {[%clk 0:02:32]} 11. Nc4 {[%clk 0:02:57]}  Ba6 {[%clk 0:02:30]} 12. Ne3 {[%clk 0:02:56]}  Rad8 {[%clk 0:02:28]} 13. Qa4 {[%clk 0:02:47]}  Bd3 {[%clk 0:02:22]} 14. Nd5 {[%clk 0:01:41]}  Qd6 {[%clk 0:01:36]} 15. Qxc6 {[%clk 0:01:35]}  Nxd5 {[%clk 0:01:24]} 16. Qxd6 {[%clk 0:01:32]}  Rxd6 {[%clk 0:01:23]} 17. exd5 {[%clk 0:01:32]} 1-0


[Site "https://www.chess.com"]

[Event "Titled Tuesday Blitz April 05 Early 2022"]
[White "Dubov, Daniil"]
[Black "Skatchkov, Valery"]
[WhiteFideId "24126055"]
[BlackFideId "24195812"]
[WhiteElo "2791"]
[BlackElo "2196"]
[Result "1-0"]
[Round "01"]
[TimeControl "180+1"]
[Date "2022.04.05"]
[WhiteClock "0:02:04"]
[BlackClock "0:01:49"]

1. d4 {[%clk 0:02:59]}  Nf6 {[%clk 0:02:58]} 2. Nf3 {[%clk 0:03:00]}  e6 {[%clk 0:02:58]} 3. c4 {[%clk 0:03:00]}  d6 {[%clk 0:02:58]} 4. g3 {[%clk 0:03:00]}  Nbd7 {[%clk 0:02:59]} 5. Bg2 {[%clk 0:03:00]}  g6 {[%clk 0:02:59]} 6. O-O {[%clk 0:03:01]}  Bg7 {[%clk 0:03:00]} 7. Nc3 {[%clk 0:03:01]}  O-O {[%clk 0:03:00]} 8. e4 {[%clk 0:03:01]}  c5 {[%clk 0:02:59]} 9. dxc5 {[%clk 0:02:57]}  Nxc5 {[%clk 0:02:54]} 10. Qe2 {[%clk 0:02:57]}  Qe7 {[%clk 0:02:51]} 11. Rd1 {[%clk 0:02:56]}  b6 {[%clk 0:02:50]} 12. e5 {[%clk 0:02:48]}  dxe5 {[%clk 0:02:45]} 13. Nxe5 {[%clk 0:02:49]}  Bb7 {[%clk 0:02:46]} 14. Be3 {[%clk 0:02:45]}  Bxg2 {[%clk 0:02:41]} 15. Kxg2 {[%clk 0:02:44]}  Nfe4 {[%clk 0:02:39]} 16. Nxe4 {[%clk 0:02:31]}  Nxe4 {[%clk 0:02:39]} 17. Bf4 {[%clk 0:02:31]}  Qb7 {[%clk 0:02:34]} 18. Qf3 {[%clk 0:02:29]}  g5 {[%clk 0:02:28]} 19. Rd7 {[%clk 0:02:27]}  Qc8 {[%clk 0:02:16]} 20. Qxe4 {[%clk 0:02:19]}  Bxe5 {[%clk 0:02:14]} 21. Qxe5 {[%clk 0:02:12]}  Qc6+ {[%clk 0:02:02]} 22. Kg1 {[%clk 0:02:08]}  f6 {[%clk 0:01:49]} 23. Qc7 {[%clk 0:02:04]} 1-0


[Site "https://www.chess.com"]

[Event "Titled Tuesday Blitz April 05 Early 2022"]
[White "Dukic, Zachary"]
[Black "Sahil, Tickoo"]
[WhiteFideId "2617188"]
[BlackFideId "5019710"]
[WhiteElo "2086"]
[BlackElo "2099"]
[Result "1-0"]
[Round "01"]
[TimeControl "180+1"]
[Date "2022.04.05"]
[WhiteClock "0:00:06"]
[BlackClock "0:00:17"]

1. e4 {[%clk 0:02:56]}  c5 {[%clk 0:02:59]} 2. Nf3 {[%clk 0:02:55]}  d6 {[%clk 0:02:58]} 3. d4 {[%clk 0:02:56]}  cxd4 {[%clk 0:02:56]} 4. Nxd4 {[%clk 0:02:57]}  Nf6 {[%clk 0:02:56]} 5. Nc3 {[%clk 0:02:57]}  a6 {[%clk 0:02:56]} 6. Bg5 {[%clk 0:02:57]}  e6 {[%clk 0:02:52]} 7. f4 {[%clk 0:02:56]}  Be7 {[%clk 0:02:52]} 8. Qf3 {[%clk 0:02:52]}  Qc7 {[%clk 0:02:52]} 9. O-O-O {[%clk 0:02:52]}  Nbd7 {[%clk 0:02:51]} 10. f5 {[%clk 0:02:51]}  Ne5 {[%clk 0:02:50]} 11. Qh3 {[%clk 0:02:49]}  Qd7 {[%clk 0:02:41]} 12. Be2 {[%clk 0:02:37]}  h6 {[%clk 0:02:37]} 13. Bh4 {[%clk 0:02:37]}  b5 {[%clk 0:02:34]} 14. a3 {[%clk 0:02:28]}  Bb7 {[%clk 0:02:34]} 15. fxe6 {[%clk 0:02:19]}  fxe6 {[%clk 0:02:25]} 16. Qxe6 {[%clk 0:02:01]}  Qxe6 {[%clk 0:02:22]} 17. Nxe6 {[%clk 0:02:02]}  Kf7 {[%clk 0:02:23]} 18. Nc7 {[%clk 0:02:00]}  Rac8 {[%clk 0:02:07]} 19. Bxf6 {[%clk 0:01:59]}  Rxc7 {[%clk 0:01:58]} 20. Bxe7 {[%clk 0:01:31]}  Kxe7 {[%clk 0:01:57]} 21. Nd5+ {[%clk 0:01:21]}  Bxd5 {[%clk 0:01:57]} 22. Rxd5 {[%clk 0:01:16]}  Rf8 {[%clk 0:01:51]} 23. Rf1 {[%clk 0:01:06]}  Rxf1+ {[%clk 0:01:49]} 24. Bxf1 {[%clk 0:01:06]}  Ke6 {[%clk 0:01:45]} 25. a4 {[%clk 0:00:51]}  Rf7 {[%clk 0:01:35]} 26. Rd1 {[%clk 0:00:31]}  bxa4 {[%clk 0:01:18]} 27. Bxa6 {[%clk 0:00:31]}  Rf2 {[%clk 0:01:17]} 28. Rd2 {[%clk 0:00:32]}  Rf4 {[%clk 0:01:16]} 29. Bd3 {[%clk 0:00:22]}  g5 {[%clk 0:01:10]} 30. Kb1 {[%clk 0:00:19]}  g4 {[%clk 0:01:08]} 31. Ka2 {[%clk 0:00:18]}  Nxd3 {[%clk 0:01:01]} 32. cxd3 {[%clk 0:00:18]}  Ke5 {[%clk 0:01:01]} 33. Ka3 {[%clk 0:00:15]}  Kd4 {[%clk 0:01:01]} 34. Kxa4 {[%clk 0:00:15]}  Ke3 {[%clk 0:01:00]} 35. Rd1 {[%clk 0:00:12]}  Rf2 {[%clk 0:01:00]} 36. b4 {[%clk 0:00:12]}  Rxg2 {[%clk 0:00:59]} 37. b5 {[%clk 0:00:12]}  Rxh2 {[%clk 0:00:59]} 38. Rb1 {[%clk 0:00:06]}  Ra2+ {[%clk 0:00:58]} 39. Kb4 {[%clk 0:00:06]}  Ra8 {[%clk 0:00:59]} 40. Kc4 {[%clk 0:00:06]}  g3 {[%clk 0:00:58]} 41. Kd5 {[%clk 0:00:07]}  Kxd3 {[%clk 0:00:58]} 42. Rb3+ {[%clk 0:00:05]}  Ke2 {[%clk 0:00:49]} 43. Rxg3 {[%clk 0:00:05]}  Rb8 {[%clk 0:00:49]} 44. Kc6 {[%clk 0:00:06]}  Kf2 {[%clk 0:00:47]} 45. Rh3 {[%clk 0:00:06]}  Re8 {[%clk 0:00:27]} 46. Rxh6 {[%clk 0:00:03]}  Rxe4 {[%clk 0:00:27]} 47. Rxd6 {[%clk 0:00:03]}  Rc4+ {[%clk 0:00:24]} 48. Kb7 {[%clk 0:00:03]}  Rb4 {[%clk 0:00:24]} 49. b6 {[%clk 0:00:03]}  Ke3 {[%clk 0:00:25]} 50. Kc7 {[%clk 0:00:03]}  Ke4 {[%clk 0:00:25]} 51. b7 {[%clk 0:00:03]}  Rc4+ {[%clk 0:00:26]} 52. Kb8 {[%clk 0:00:04]}  Rb4 {[%clk 0:00:26]} 53. Rd8 {[%clk 0:00:04]}  Ke5 {[%clk 0:00:26]} 54. Kc7 {[%clk 0:00:02]}  Rc4+ {[%clk 0:00:26]} 55. Kb6 {[%clk 0:00:02]}  Rb4+ {[%clk 0:00:26]} 56. Ka7 {[%clk 0:00:02]}  Ra4+ {[%clk 0:00:25]} 57. Kb8 {[%clk 0:00:03]}  Rb4 {[%clk 0:00:26]} 58. Rd1 {[%clk 0:00:04]}  Ke6 {[%clk 0:00:26]} 59. Ra1 {[%clk 0:00:04]}  Kd7 {[%clk 0:00:26]} 60. Ka8 {[%clk 0:00:05]}  Kc7 {[%clk 0:00:18]} 61. Rc1+ {[%clk 0:00:05]}  Kd7 {[%clk 0:00:16]} 62. b8=Q {[%clk 0:00:06]}  Rxb8+ {[%clk 0:00:17]} 63. Kxb8 {[%clk 0:00:06]} 1-0


[Site "https://www.chess.com"]

[Event "Titled Tuesday Blitz April 05 Early 2022"]
[White "Fikiet, Alex"]
[Black "Kopylov, Alexander A."]
[WhiteFideId "2052717"]
[BlackFideId "4164857"]
[WhiteElo "2413"]
[BlackElo "2436"]
[Result "1-0"]
[Round "01"]
[TimeControl "180+1"]
[Date "2022.04.05"]
[WhiteClock "0:01:22"]
[BlackClock "0:01:34"]

1. e4 {[%clk 0:02:59]}  e5 {[%clk 0:02:58]} 2. Nf3 {[%clk 0:02:59]}  Nc6 {[%clk 0:02:58]} 3. Nc3 {[%clk 0:02:57]}  Nf6 {[%clk 0:02:59]} 4. a3 {[%clk 0:02:57]}  a6 {[%clk 0:02:57]} 5. d4 {[%clk 0:02:56]}  exd4 {[%clk 0:02:57]} 6. Nxd4 {[%clk 0:02:57]}  Be7 {[%clk 0:02:54]} 7. Be3 {[%clk 0:02:52]}  O-O {[%clk 0:02:53]} 8. Bc4 {[%clk 0:02:47]}  d6 {[%clk 0:02:46]} 9. h3 {[%clk 0:02:46]}  Bd7 {[%clk 0:02:37]} 10. Ba2 {[%clk 0:02:43]}  Ne5 {[%clk 0:02:37]} 11. f4 {[%clk 0:02:41]}  Ng6 {[%clk 0:02:37]} 12. Nf3 {[%clk 0:02:33]}  Be6 {[%clk 0:02:32]} 13. Bxe6 {[%clk 0:02:06]}  fxe6 {[%clk 0:02:33]} 14. Nd4 {[%clk 0:01:56]}  Qd7 {[%clk 0:02:28]} 15. f5 {[%clk 0:01:54]}  exf5 {[%clk 0:02:25]} 16. exf5 {[%clk 0:01:54]}  Ne5 {[%clk 0:02:21]} 17. O-O {[%clk 0:01:50]}  Rae8 {[%clk 0:02:17]} 18. Ne6 {[%clk 0:01:41]}  Rf7 {[%clk 0:02:17]} 19. Qd4 {[%clk 0:01:23]}  Qxe6 {[%clk 0:01:34]} 20. fxe6 {[%clk 0:01:22]} 1-0


[Site "https://www.chess.com"]

[Event "Titled Tuesday Blitz April 05 Early 2022"]
[White "Gaehwiler, Gabriel"]
[Black "Manelyuk, Daniil"]
[WhiteFideId "1314530"]
[BlackFideId "44173920"]
[WhiteElo "2383"]
[BlackElo "2209"]
[Result "1-0"]
[Round "01"]
[TimeControl "180+1"]
[Date "2022.04.05"]
[WhiteClock "0:00:48"]
[BlackClock "0:00:10"]

1. Nf3 {[%clk 0:03:00]}  d5 {[%clk 0:02:59]} 2. c4 {[%clk 0:03:00]}  dxc4 {[%clk 0:02:57]} 3. e4 {[%clk 0:03:00]}  Be6 {[%clk 0:02:45]} 4. Ng5 {[%clk 0:02:58]}  Qd4 {[%clk 0:02:06]} 5. Nc3 {[%clk 0:02:26]}  Bd7 {[%clk 0:01:20]} 6. a4 {[%clk 0:02:04]}  Nf6 {[%clk 0:01:13]} 7. Nf3 {[%clk 0:01:42]}  Qc5 {[%clk 0:00:56]} 8. d4 {[%clk 0:01:42]}  cxd3 {[%clk 0:00:55]} 9. Bxd3 {[%clk 0:01:42]}  Nc6 {[%clk 0:00:52]} 10. Be3 {[%clk 0:01:42]}  Qh5 {[%clk 0:00:47]} 11. Be2 {[%clk 0:01:29]}  e6 {[%clk 0:00:42]} 12. O-O {[%clk 0:01:25]}  Bb4 {[%clk 0:00:38]} 13. Nb5 {[%clk 0:01:23]}  Ba5 {[%clk 0:00:30]} 14. Rc1 {[%clk 0:01:02]}  O-O {[%clk 0:00:24]} 15. Rc5 {[%clk 0:01:01]}  Qg6 {[%clk 0:00:20]} 16. Rg5 {[%clk 0:00:56]}  Qxe4 {[%clk 0:00:20]} 17. Bd3 {[%clk 0:00:57]}  Qxa4 {[%clk 0:00:19]} 18. Qxa4 {[%clk 0:00:56]}  a6 {[%clk 0:00:12]} 19. Nbd4 {[%clk 0:00:51]}  Bb6 {[%clk 0:00:11]} 20. Nxc6 {[%clk 0:00:49]}  Bxc6 {[%clk 0:00:11]} 21. Qh4 {[%clk 0:00:48]}  Rfd8 {[%clk 0:00:11]} 22. Rxg7+ {[%clk 0:00:47]}  Kxg7 {[%clk 0:00:10]} 23. Bh6+ {[%clk 0:00:47]}  Kg8 {[%clk 0:00:10]} 24. Qxf6 {[%clk 0:00:48]}  Bxf3 {[%clk 0:00:10]} 25. Qg7# {[%clk 0:00:48]} 1-0


[Site "https://www.chess.com"]

[Event "Titled Tuesday Blitz April 05 Early 2022"]
[White "Garv Gaur"]
[Black "Jumabayev, Rinat"]
[WhiteFideId "45030839"]
[BlackFideId "13702661"]
[WhiteElo "1950"]
[BlackElo "2561"]
[Result "0-1"]
[Round "01"]
[TimeControl "180+1"]
[Date "2022.04.05"]
[WhiteClock "0:00:06"]
[BlackClock "0:00:40"]

1. d4 {[%clk 0:03:00]}  Nf6 {[%clk 0:02:59]} 2. Nf3 {[%clk 0:03:00]}  e6 {[%clk 0:03:00]} 3. c4 {[%clk 0:03:00]}  Bb4+ {[%clk 0:03:01]} 4. Bd2 {[%clk 0:03:00]}  a5 {[%clk 0:02:59]} 5. g3 {[%clk 0:02:59]}  b6 {[%clk 0:02:59]} 6. Bg2 {[%clk 0:02:59]}  Ba6 {[%clk 0:03:00]} 7. Qc2 {[%clk 0:02:58]}  Bb7 {[%clk 0:03:00]} 8. Nc3 {[%clk 0:02:52]}  c5 {[%clk 0:02:53]} 9. dxc5 {[%clk 0:02:48]}  Bxc5 {[%clk 0:02:36]} 10. O-O {[%clk 0:02:45]}  O-O {[%clk 0:02:35]} 11. Rad1 {[%clk 0:02:40]}  Nc6 {[%clk 0:02:32]} 12. Bg5 {[%clk 0:02:39]}  Be7 {[%clk 0:02:26]} 13. a3 {[%clk 0:02:29]}  Rc8 {[%clk 0:02:22]} 14. Qb1 {[%clk 0:02:18]}  Ba6 {[%clk 0:02:13]} 15. Nb5 {[%clk 0:02:14]}  d5 {[%clk 0:02:07]} 16. Nfd4 {[%clk 0:02:04]}  Nxd4 {[%clk 0:02:02]} 17. Rxd4 {[%clk 0:02:05]}  h6 {[%clk 0:01:53]} 18. Bf4 {[%clk 0:01:27]}  Bc5 {[%clk 0:01:47]} 19. Rd2 {[%clk 0:01:22]}  Qe7 {[%clk 0:01:47]} 20. a4 {[%clk 0:01:07]}  Bb4 {[%clk 0:01:47]} 21. Rc2 {[%clk 0:01:06]}  Rxc4 {[%clk 0:01:37]} 22. Rxc4 {[%clk 0:01:05]}  dxc4 {[%clk 0:01:38]} 23. Nc7 {[%clk 0:01:02]}  e5 {[%clk 0:01:32]} 24. Bxe5 {[%clk 0:00:58]}  Qxe5 {[%clk 0:01:29]} 25. Nxa6 {[%clk 0:00:58]}  Qxe2 {[%clk 0:01:28]} 26. Nxb4 {[%clk 0:00:53]}  axb4 {[%clk 0:01:29]} 27. Re1 {[%clk 0:00:54]}  Qg4 {[%clk 0:01:27]} 28. Qc2 {[%clk 0:00:48]}  Rc8 {[%clk 0:01:24]} 29. Bb7 {[%clk 0:00:37]}  Rc7 {[%clk 0:01:21]} 30. Rd1 {[%clk 0:00:28]}  g6 {[%clk 0:01:19]} 31. Bg2 {[%clk 0:00:24]}  Kg7 {[%clk 0:01:18]} 32. Rd6 {[%clk 0:00:22]}  c3 {[%clk 0:00:57]} 33. Rxb6 {[%clk 0:00:15]}  Qd4 {[%clk 0:00:55]} 34. Rc6 {[%clk 0:00:11]}  Rxc6 {[%clk 0:00:44]} 35. Bxc6 {[%clk 0:00:12]}  cxb2 {[%clk 0:00:43]} 36. a5 {[%clk 0:00:12]}  Qc3 {[%clk 0:00:43]} 37. Qb1 {[%clk 0:00:06]}  Qc1+ {[%clk 0:00:40]} 0-1


[Site "https://www.chess.com"]